fUST/lending_fUST_20240625
["ID","MTS","AMOUNT","RATE_DAILY","PERIOD"]
[330308269,1719249043503,-3952.27,0.00016438,2]
[330308270,1719249043514,-1120.34,0.00016438,2]
[330308271,1719249043523,-500.0,0.00016438,2]
[330308272,1719249043533,-4145.75,0.00016438,2]
[330308273,1719249043543,-500.0,0.00016438,2]
[330308274,1719249043553,-500.0,0.00016438,2]
[330308275,1719249043562,-500.0,0.00016438,2]
[330308276,1719249043571,-500.0,0.00016438,2]
[330308277,1719249043581,-525.79744141,0.00016438,2]
[330308278,1719249043591,-500.0,0.00016438,2]
[330308280,1719249043600,-500.0,0.00016438,2]
[330308282,1719249043609,-500.0,0.00016438,2]
[330308284,1719249043618,-500.0,0.00016438,2]
[330308285,1719249043627,-500.0,0.00016438,2]
[330308287,1719249043636,-504.01179433,0.00016438,2]
[330308289,1719249043646,-500.0,0.00016438,2]
[330308291,1719249043656,-234.81807462,0.00016438,2]
[330308293,1719249043669,-526.86,0.00016438,2]
[330308295,1719249043679,-500.0,0.00016438,2]
[330308296,1719249043688,-500.0,0.00016438,2]
[330308297,1719249043698,-500.0,0.00016438,2]
[330308298,1719249043708,-500.0,0.00016438,2]
[330308299,1719249043720,-630.85030799,0.00016438,2]
[330308300,1719249043729,-500.0,0.00016438,2]
[330308301,1719249043738,-3660.33,0.00016438,2]
[330308302,1719249043748,-500.0,0.00016438,2]
[330308303,1719249043757,-249.58632209,0.00016438,2]
[330308304,1719249043767,-500.0,0.00016438,2]
[330308305,1719249043777,-615.35941525,0.00016438,2]
[330308306,1719249043787,-1008.3,0.00016438,2]
[330308307,1719249043797,-500.0,0.00016438,2]
[330308308,1719249043806,-3821.45,0.00016438,2]
[330308309,1719249043815,-500.0,0.00016438,2]
[330308310,1719249043824,-500.0,0.00016438,2]
[330308311,1719249043833,-500.0,0.00016438,2]
[330308312,1719249043843,-505.74411084,0.00016438,2]
[330308313,1719249043852,-500.0,0.00016438,2]
[330308314,1719249043861,-500.0,0.00016438,2]
[330308315,1719249043870,-545.85,0.00016438,2]
[330308316,1719249043880,-500.0,0.00016438,2]
[330308317,1719249043890,-500.0,0.00016438,2]
[330308318,1719249043900,-500.0,0.00016438,2]
[330308319,1719249043909,-500.0,0.00016438,2]
[330308320,1719249043918,-500.0,0.00016438,2]
[330308321,1719249043927,-500.0,0.00016438,2]
[330308322,1719249043936,-500.0,0.00016438,2]
[330308323,1719249043945,-924.27,0.00016438,2]
[330308324,1719249043954,-4414.69,0.00016438,2]
[330308325,1719249043965,-500.0,0.00016438,2]
[330308326,1719249043974,-534.91107468,0.00016438,2]
[330308327,1719249043983,-9028.11,0.00016438,2]
[330308328,1719249043992,-500.0,0.00016438,2]
[330308329,1719249044006,-500.0,0.00016438,2]
[330308330,1719249044016,-500.0,0.00016438,2]
[330308331,1719249044025,-500.0,0.00016438,2]
[330308332,1719249044034,-687.82,0.00016438,2]
[330308333,1719249044044,-504.17106983,0.00016438,2]
[330308334,1719249044053,-647.08,0.00016438,2]
[330308335,1719249044062,-500.0,0.00016438,2]
[330308336,1719249044071,-1821.76,0.00016438,2]
[330308337,1719249044080,-500.0,0.00016438,2]
[330308338,1719249044089,-500.0,0.00016438,2]
[330308339,1719249044099,-264.90903088,0.00016438,2]
[330308342,1719249044108,-500.0,0.00016438,2]
[330308345,1719249044118,-500.0,0.00016438,2]
[330308347,1719249044127,-500.0,0.00016438,2]
[330308348,1719249044136,-500.0,0.00016438,2]
[330308349,1719249044145,-500.0,0.00016438,2]
[330308350,1719249044155,-500.0,0.00016438,2]
[330308351,1719249044164,-274.82443069,0.00016438,2]
[330308352,1719249044173,-13904.26,0.00016438,2]
[330308353,1719249044181,-500.0,0.00016438,2]
[330308354,1719249044190,-745.3,0.00016438,2]
[330308355,1719249044200,-702.77,0.00016438,2]
[330308356,1719249044208,-799.32,0.00016438,2]
[330308357,1719249044219,-509.92354477,0.00016438,2]
[330308358,1719249044228,-500.0,0.00016438,2]
[330308359,1719249044237,-528.83690298,0.00016438,2]
[330308360,1719249044245,-500.0,0.00016438,2]
[330308361,1719249044255,-590.515982,0.00016438,2]
[330308362,1719249044264,-395.23605556,0.00016438,2]
[330308363,1719249044273,-544.88400318,0.00016438,2]
[330308364,1719249044282,-799.17,0.00016438,2]
[330308365,1719249044291,-526.10548931,0.00016438,2]
[330308366,1719249044300,-500.0,0.00016438,2]
[330308367,1719249044309,-500.0,0.00016438,2]
[330308368,1719249044318,-500.0,0.00016438,2]
[330308369,1719249044327,-500.0,0.00016438,2]
[330308370,1719249044337,-507.01,0.00016438,2]
[330308371,1719249044346,-500.0,0.00016438,2]
[330308372,1719249044355,-561.1928651,0.00016438,2]
[330308373,1719249044364,-500.0,0.00016438,2]
[330308374,1719249044373,-500.0,0.00016438,2]
[330308375,1719249044383,-500.0,0.00016438,2]
[330308376,1719249044392,-1596.08,0.00016438,2]
[330308377,1719249044401,-500.0,0.00016438,2]
[330308378,1719249044411,-500.0,0.00016438,2]
[330308379,1719249044420,-960.49,0.00016438,2]
[330308380,1719249044429,-500.0,0.00016438,2]
[330308381,1719249044439,-500.0,0.00016438,2]
[330308382,1719249044448,-500.0,0.00016438,2]
[330308383,1719249044457,-767.89,0.00016438,2]
[330308384,1719249044469,-532.30448464,0.00016438,2]
[330308385,1719249044478,-500.0,0.00016438,2]
[330308386,1719249044487,-500.0,0.00016438,2]
[330308387,1719249044496,-532.16776344,0.00016438,2]
[330308388,1719249044506,-1999.51,0.00016438,2]
[330308389,1719249044516,-500.0,0.00016438,2]
[330308390,1719249044529,-1853.71,0.00016438,2]
[330308391,1719249044539,-500.0,0.00016438,2]
[330308392,1719249044549,-500.0,0.00016438,2]
[330308393,1719249044558,-2753.67,0.00016438,2]
[330308394,1719249044567,-500.0,0.00016438,2]
[330308395,1719249044576,-500.0,0.00016438,2]
[330308396,1719249044587,-500.0,0.00016438,2]
[330308397,1719249044597,-610.02,0.00016438,2]
[330308398,1719249044606,-500.0,0.00016438,2]
[330308399,1719249044615,-500.0,0.00016438,2]
[330308400,1719249044624,-500.0,0.00016438,2]
[330308401,1719249044634,-3401.01,0.00016438,2]
[330308402,1719249044643,-528.31,0.00016438,2]
[330308403,1719249044653,-500.0,0.00016438,2]
[330308404,1719249044662,-500.0,0.00016438,2]
[330308405,1719249044672,-500.0,0.00016438,2]
[330308406,1719249044681,-500.0,0.00016438,2]
[330308407,1719249044691,-500.0,0.00016438,2]
[330308408,1719249044700,-500.0,0.00016438,2]
[330308410,1719249044710,-365.79837686,0.00016438,2]
[330308412,1719249044724,-10552.71,0.00016438,2]
[330308414,1719249044733,-500.0,0.00016438,2]
[330308416,1719249044743,-478.48029184,0.00016438,2]
[330308418,1719249044753,-500.0,0.00016438,2]
[330308420,1719249044763,-500.0,0.00016438,2]
[330308422,1719249044773,-500.0,0.00016438,2]
[330308424,1719249044782,-500.0,0.00016438,2]
[330308426,1719249044792,-394.05562049,0.00016438,2]
[330308428,1719249044801,-500.0,0.00016438,2]
[330308430,1719249044811,-6671.2,0.00016438,2]
[330308432,1719249044821,-500.0,0.00016438,2]
[330308434,1719249044830,-500.0,0.00016438,2]
[330308436,1719249044840,-500.0,0.00016438,2]
[330308438,1719249044850,-500.0,0.00016438,2]
[330308440,1719249044860,-500.0,0.00016438,2]
[330308442,1719249044870,-500.0,0.00016438,2]
[330308444,1719249044880,-500.0,0.00016438,2]
[330308446,1719249044890,-1039.86,0.00016438,2]
[330308448,1719249044899,-2442.64,0.00016438,2]
[330308450,1719249044908,-2442.64,0.00016438,2]
[330308452,1719249044918,-2442.64,0.00016438,2]
[330308454,1719249044927,-2442.64,0.00016438,2]
[330308456,1719249044936,-2442.64,0.00016438,2]
[330308458,1719249044945,-2442.64,0.00016438,2]
[330308460,1719249044954,-2442.64,0.00016438,2]
[330308462,1719249044964,-516.71875963,0.00016438,2]
[330308464,1719249044978,-2442.64,0.00016438,2]
[330308466,1719249044988,-2442.64,0.00016438,2]
[330308468,1719249045002,-2442.64,0.00016438,2]
[330308470,1719249045012,-500.0,0.00016438,2]
[330308472,1719249045021,-500.0,0.00016438,2]
[330308474,1719249045031,-840.92,0.00016438,2]
[330308476,1719249045041,-500.0,0.00016438,2]
[330308478,1719249045051,-500.0,0.00016438,2]
[330308480,1719249045060,-554.35155091,0.00016438,2]
[330308482,1719249045070,-500.0,0.00016438,2]
[330308484,1719249045080,-500.0,0.00016438,2]
[330308486,1719249045089,-500.0,0.00016438,2]
[330308488,1719249045098,-500.0,0.00016438,2]
[330308490,1719249045107,-527.19,0.00016438,2]
[330308492,1719249045116,-500.0,0.00016438,2]
[330308494,1719249045126,-3089.05,0.00016438,2]
[330308496,1719249045135,-500.0,0.00016438,2]
[330308497,1719249045147,-500.0,0.00016438,2]
[330308499,1719249045156,-500.0,0.00016438,2]
[330308501,1719249045166,-500.0,0.00016438,2]
[330308503,1719249045175,-500.0,0.00016438,2]
[330308505,1719249045184,-500.0,0.00016438,2]
[330308507,1719249045193,-500.0,0.00016438,2]
[330308509,1719249045203,-2103.7,0.00016438,2]
[330308511,1719249045212,-500.0,0.00016438,2]
[330308513,1719249045226,-500.0,0.00016438,2]
[330308515,1719249045236,-500.0,0.00016438,2]
[330308517,1719249045247,-500.0,0.00016438,2]
[330308519,1719249045256,-500.0,0.00016438,2]
[330308521,1719249045266,-500.0,0.00016438,2]
[330308523,1719249045275,-560.82,0.00016438,2]
[330308525,1719249045285,-180.0,0.000165,2]
[330308527,1719249045295,-276.08930439,0.00016579,2]
[330308529,1719249045304,-697.93,0.00016596,2]
[330308532,1719249045314,-930.17118706,0.00016605,2]
[330308533,1719249045323,-500.0,0.0001671,2]
[330308535,1719249045333,-500.0,0.0001671,2]
[330308537,1719249045342,-500.0,0.0001671,2]
[330308539,1719249045352,-2442.64,0.0001671,2]
[330308541,1719249045362,-697.93,0.00016711,2]
[330308543,1719249045371,-697.93,0.00016711,2]
[330308545,1719249045380,-697.93,0.00016711,2]
[330308547,1719249045390,-697.93,0.00016711,2]
[330308549,1719249045400,-2442.64,0.00016711,2]
[330308551,1719249045409,-2442.64,0.00016711,2]
[330308553,1719249045420,-2442.64,0.00016711,2]
[330308555,1719249045430,-2442.64,0.00016711,2]
[330308557,1719249045440,-2442.64,0.00016711,2]
[330308559,1719249045452,-500.0,0.00016712,2]
[330308561,1719249045461,-500.0,0.00016712,2]
[330308563,1719249045481,-500.0,0.00016712,2]
[330308565,1719249045490,-500.0,0.00016712,2]
[330308567,1719249045503,-500.0,0.00016712,2]
[330308568,1719249045514,-500.0,0.00016712,2]
[330308570,1719249045524,-500.0,0.00016712,2]
[330308572,1719249045533,-502.49353835,0.00016712,2]
[330308574,1719249045544,-506.85,0.00016712,2]
[330308576,1719249045553,-364.0245495,0.00016712,2]
[330308578,1719249045563,-500.0,0.00016712,2]
[330308580,1719249045573,-500.0,0.00016712,2]
[330308582,1719249045583,-500.0,0.00016712,2]
[330308585,1719249045593,-500.0,0.00016712,2]
[330308588,1719249045604,-500.0,0.00016712,2]
[330308591,1719249045614,-500.0,0.00016712,2]
[330308595,1719249045624,-500.0,0.00016712,2]
[330308597,1719249045633,-325.1748145,0.00016712,2]
[330308600,1719249045642,-508.83724709,0.00016712,2]
[330308604,1719249045652,-607.07,0.00016712,2]
[330308607,1719249045662,-500.0,0.00016712,2]
[330308610,1719249045671,-500.0,0.00016712,2]
[330308612,1719249045681,-500.0,0.00016712,2]
[330308615,1719249045690,-500.0,0.00016712,2]
[330308619,1719249045700,-500.0,0.00016712,2]
[330308622,1719249045709,-500.0,0.00016712,2]
[330308624,1719249045724,-500.0,0.00016712,2]
[330308626,1719249045733,-500.0,0.00016712,2]
[330308629,1719249045743,-500.0,0.00016712,2]
[330308632,1719249045752,-500.0,0.00016712,2]
[330308635,1719249045761,-1482.6,0.00016712,2]
[330308638,1719249045771,-500.0,0.00016712,2]
[330308641,1719249045780,-500.0,0.00016712,2]
[330308644,1719249045790,-500.0,0.00016712,2]
[330308647,1719249045800,-500.0,0.00016712,2]
[330308650,1719249045810,-1012.37,0.00016712,2]
[330308653,1719249045820,-500.0,0.00016712,2]
[330308656,1719249045830,-500.0,0.00016712,2]
[330308658,1719249045839,-500.0,0.00016712,2]
[330308660,1719249045848,-500.0,0.00016712,2]
[330308662,1719249045858,-500.0,0.00016712,2]
[330308664,1719249045867,-666.91,0.00016712,2]
[330308671,1719249045983,-500.0,0.00016712,2]
[330308672,1719249045993,-500.0,0.00016712,2]
[330308673,1719249046003,-500.0,0.00016712,2]
[330308674,1719249046013,-500.0,0.00016712,2]
[330308675,1719249046024,-500.0,0.00016712,2]
[330308676,1719249046033,-857.48,0.00016712,2]
[330308677,1719249046042,-500.0,0.00016712,2]
[330308678,1719249046053,-597.31,0.00016712,2]
[330308679,1719249046063,-475.94428098,0.00016712,2]
[330308681,1719249046072,-536.28,0.00016712,2]
[330308682,1719249046082,-500.0,0.00016712,2]
[330308684,1719249046091,-500.0,0.00016712,2]
[330308686,1719249046101,-500.0,0.00016712,2]
[330308688,1719249046110,-508.52931754,0.00016712,2]
[330308690,1719249046119,-500.0,0.00016712,2]
[330308692,1719249046128,-500.0,0.00016712,2]
[330308694,1719249046137,-500.0,0.00016712,2]
[330308696,1719249046146,-250.54608254,0.00016712,2]
[330308698,1719249046156,-500.0,0.00016712,2]
[330308700,1719249046165,-500.0,0.00016712,2]
[330308702,1719249046174,-1712.94,0.00016712,2]
[330308705,1719249046183,-500.0,0.00016712,2]
[330308707,1719249046192,-500.0,0.00016712,2]
[330308708,1719249046201,-500.0,0.00016712,2]
[330308711,1719249046211,-500.0,0.00016712,2]
[330308712,1719249046223,-505.45336454,0.00016712,2]
[330308714,1719249046232,-500.0,0.00016712,2]
[330308716,1719249046242,-500.0,0.00016712,2]
[330308718,1719249046251,-500.0,0.00016712,2]
[330308720,1719249046260,-500.0,0.00016712,2]
[330308722,1719249046270,-500.0,0.00016712,2]
[330308724,1719249046280,-500.0,0.00016712,2]
[330308727,1719249046289,-500.0,0.00016712,2]
[330308729,1719249046299,-528.5,0.00016712,2]
[330308731,1719249046308,-500.0,0.00016712,2]
[330308732,1719249046317,-500.0,0.00016712,2]
[330308734,1719249046327,-500.0,0.00016712,2]
[330308736,1719249046336,-500.0,0.00016712,2]
[330308738,1719249046345,-151.0,0.00016712,2]
[330308740,1719249046355,-500.0,0.00016712,2]
[330308742,1719249046364,-205.81766206,0.00016712,2]
[330308744,1719249046374,-151.0,0.00016712,2]
[330308746,1719249046383,-500.0,0.00016712,2]
[330308748,1719249046392,-500.0,0.00016712,2]
[330308750,1719249046402,-692.66,0.00016712,2]
[330308752,1719249046411,-508.8050644,0.00016712,2]
[330308754,1719249046420,-500.0,0.00016712,2]
[330308756,1719249046430,-294.98455101,0.00016712,2]
[330308758,1719249046439,-504.07959165,0.00016712,2]
[330308760,1719249046448,-500.0,0.00016712,2]
[330308762,1719249046458,-1111.98,0.00016712,2]
[330308764,1719249046470,-500.0,0.00016712,2]
[330308766,1719249046480,-156.95425407,0.00016712,2]
[330308768,1719249046489,-500.0,0.00016712,2]
[330308770,1719249046498,-408.52951471,0.00016712,2]
[330308772,1719249046507,-500.0,0.00016712,2]
[330308774,1719249046519,-500.0,0.00016712,2]
[330308776,1719249046529,-253.99,0.00016712,2]
[330308778,1719249046538,-654.5,0.00016712,2]
[330308780,1719249046547,-500.0,0.00016712,2]
[330308782,1719249046556,-500.0,0.00016712,2]
[330308784,1719249046566,-500.0,0.00016712,2]
[330308785,1719249046575,-951.86,0.00016712,2]
[330308787,1719249046585,-1112.88,0.00016712,2]
[330308789,1719249046594,-500.0,0.00016712,2]
[330308791,1719249046604,-500.0,0.00016712,2]
[330308793,1719249046614,-500.0,0.00016712,2]
[330308795,1719249046623,-506.71995163,0.00016712,2]
[330308797,1719249046632,-255.027828,0.00016712,2]
[330308799,1719249046641,-255.027828,0.00016712,2]
[330308801,1719249046650,-255.027828,0.00016712,2]
[330308803,1719249046659,-500.0,0.00016712,2]
[330308805,1719249046668,-255.027828,0.00016712,2]
[330308807,1719249046677,-500.0,0.00016712,2]
[330308809,1719249046687,-500.0,0.00016712,2]
[330308811,1719249046696,-500.0,0.00016712,2]
[330308813,1719249046705,-500.0,0.00016712,2]
[330308815,1719249046716,-509.85092994,0.00016712,2]
[330308817,1719249046726,-500.0,0.00016712,2]
[330308819,1719249046735,-500.0,0.00016712,2]
[330308821,1719249046744,-155.115434,0.00016712,2]
[330308823,1719249046753,-151.0,0.00016712,2]
[330308825,1719249046763,-151.0,0.00016712,2]
[330308827,1719249046772,-500.0,0.00016712,2]
[330308829,1719249046782,-1349.45,0.00016712,2]
[330308831,1719249046791,-500.0,0.00016712,2]
[330308833,1719249046799,-500.0,0.00016712,2]
[330308835,1719249046808,-500.0,0.00016712,2]
[330308837,1719249046818,-250.0,0.00016712,2]
[330308839,1719249046827,-500.0,0.00016712,2]
[330308841,1719249046836,-500.0,0.00016712,2]
[330308843,1719249046846,-500.0,0.00016712,2]
[330308845,1719249046855,-500.0,0.00016712,2]
[330308847,1719249046864,-23273.16,0.00016712,2]
[330308849,1719249046874,-500.0,0.00016712,2]
[330308851,1719249046883,-500.0,0.00016712,2]
[330308852,1719249046892,-500.0,0.00016712,2]
[330308853,1719249046902,-2024.42,0.00016712,2]
[330308854,1719249046911,-866.98,0.00016712,2]
[330308855,1719249046920,-500.0,0.00016712,2]
[330308856,1719249046929,-500.0,0.00016712,2]
[330308857,1719249046938,-500.0,0.00016712,2]
[330308858,1719249046947,-3952.27,0.00016712,2]
[330308859,1719249046956,-1120.34,0.00016712,2]
[330308860,1719249046966,-500.0,0.00016712,2]
[330308861,1719249046979,-500.0,0.00016712,2]
[330308862,1719249046988,-4145.75,0.00016712,2]
[330308863,1719249046998,-500.0,0.00016712,2]
[330308864,1719249047007,-500.0,0.00016712,2]
[330308865,1719249047018,-500.0,0.00016712,2]
[330308866,1719249047027,-548.51672985,0.00016712,2]
[330308867,1719249047037,-500.0,0.00016712,2]
[330308868,1719249047047,-500.0,0.00016712,2]
[330308869,1719249047056,-526.86,0.00016712,2]
[330308870,1719249047065,-500.0,0.00016712,2]
[330308871,1719249047075,-263.718751,0.00016712,2]
[330308872,1719249047084,-263.718751,0.00016712,2]
[330308873,1719249047093,-263.718751,0.00016712,2]
[330308874,1719249047102,-3660.33,0.00016712,2]
[330308875,1719249047111,-263.718751,0.00016712,2]
[330308876,1719249047120,-500.0,0.00016712,2]
[330308877,1719249047129,-1008.3,0.00016712,2]
[330308878,1719249047138,-3821.45,0.00016712,2]
[330308879,1719249047147,-500.0,0.00016712,2]
[330308880,1719249047157,-500.0,0.00016712,2]
[330308881,1719249047166,-500.0,0.00016712,2]
[330308882,1719249047175,-545.85,0.00016712,2]
[330308883,1719249047184,-500.0,0.00016712,2]
[330308884,1719249047193,-151.0,0.00016712,2]
[330308885,1719249047202,-151.0,0.00016712,2]
[330308886,1719249047211,-500.0,0.00016712,2]
[330308887,1719249047223,-924.27,0.00016712,2]
[330308888,1719249047232,-153.454695,0.00016712,2]
[330308889,1719249047241,-4414.69,0.00016712,2]
[330308890,1719249047251,-9028.11,0.00016712,2]
[330308891,1719249047260,-500.0,0.00016712,2]
[330308892,1719249047269,-528.08616247,0.00016712,2]
[330308893,1719249047279,-500.0,0.00016712,2]
[330308894,1719249047288,-500.0,0.00016712,2]
[330308895,1719249047297,-687.82,0.00016712,2]
[330308896,1719249047307,-647.08,0.00016712,2]
[330308897,1719249047316,-500.0,0.00016712,2]
[330308898,1719249047326,-1821.76,0.00016712,2]
[330308899,1719249047335,-500.0,0.00016712,2]
[330308900,1719249047345,-500.0,0.00016712,2]
[330308901,1719249047355,-151.0,0.00016712,2]
[330308902,1719249047364,-151.0,0.00016712,2]
[330308903,1719249047373,-500.0,0.00016712,2]
[330308904,1719249047382,-510.2564023,0.00016712,2]
[330308905,1719249047391,-151.0,0.00016712,2]
[330308906,1719249047400,-151.0,0.00016712,2]
[330308907,1719249047410,-500.0,0.00016712,2]
[330308908,1719249047420,-500.0,0.00016712,2]
[330308909,1719249047429,-500.0,0.00016712,2]
[330308910,1719249047439,-13904.26,0.00016712,2]
[330308911,1719249047448,-500.0,0.00016712,2]
[330308912,1719249047458,-745.3,0.00016712,2]
[330308913,1719249047468,-702.77,0.00016712,2]
[330308914,1719249047478,-799.32,0.00016712,2]
[330308915,1719249047488,-500.0,0.00016712,2]
[330308916,1719249047498,-799.17,0.00016712,2]
[330308917,1719249047523,-328.857377,0.00016712,2]
[330308918,1719249047535,-328.857377,0.00016712,2]
[330308919,1719249047556,-500.0,0.00016712,2]
[330308920,1719249047569,-500.0,0.00016712,2]
[330308921,1719249047579,-328.857377,0.00016712,2]
[330308922,1719249047592,-328.857377,0.00016712,2]
[330308923,1719249047602,-500.0,0.00016712,2]
[330308924,1719249047611,-507.01,0.00016712,2]
[330308925,1719249047621,-500.0,0.00016712,2]
[330308926,1719249047630,-500.0,0.00016712,2]
[330308927,1719249047642,-1596.08,0.00016712,2]
[330308928,1719249047656,-216.03417632,0.00016712,2]
[330308929,1719249047667,-508.95644992,0.00016712,2]
[330308930,1719249047676,-960.49,0.00016712,2]
[330308931,1719249047686,-151.0,0.00016712,2]
[330308933,1719249047696,-503.44764785,0.00016712,2]
[330308934,1719249047706,-767.89,0.00016712,2]
[330308936,1719249047718,-500.0,0.00016712,2]
[330308938,1719249047732,-500.0,0.00016712,2]
[330308939,1719249047741,-1999.51,0.00016712,2]
[330308940,1719249047752,-500.0,0.00016712,2]
[330308941,1719249047761,-1853.71,0.00016712,2]
[330308942,1719249047774,-500.0,0.00016712,2]
[330308943,1719249047783,-500.0,0.00016712,2]
[330308944,1719249047792,-2753.67,0.00016712,2]
[330308945,1719249047801,-500.0,0.00016712,2]
[330308946,1719249047810,-610.02,0.00016712,2]
[330308948,1719249047819,-500.0,0.00016712,2]
[330308949,1719249047827,-500.0,0.00016712,2]
[330308951,1719249047836,-3401.01,0.00016712,2]
[330308952,1719249047845,-528.31,0.00016712,2]
[330308954,1719249047855,-500.0,0.00016712,2]
[330308956,1719249047864,-500.0,0.00016712,2]
[330308957,1719249047873,-10552.71,0.00016712,2]
[330308959,1719249047882,-500.0,0.00016712,2]
[330308961,1719249047893,-500.0,0.00016712,2]
[330308962,1719249047903,-504.92918836,0.00016712,2]
[330308964,1719249047913,-6671.2,0.00016712,2]
[330308966,1719249047922,-500.0,0.00016712,2]
[330308967,1719249047931,-500.0,0.00016712,2]
[330308969,1719249047941,-500.0,0.00016712,2]
[330308971,1719249047950,-447.4297476,0.00016712,2]
[330308972,1719249047960,-500.0,0.00016712,2]
[330308974,1719249047973,-1039.86,0.00016712,2]
[330308976,1719249047982,-500.0,0.00016712,2]
[330308977,1719249047991,-840.92,0.00016712,2]
[330308979,1719249048000,-503.95294399,0.00016712,2]
[330308981,1719249048010,-500.0,0.00016712,2]
[330308982,1719249048019,-500.0,0.00016712,2]
[330308984,1719249048028,-500.0,0.00016712,2]
[330308986,1719249048039,-500.0,0.00016712,2]
[330308987,1719249048047,-481.38763546,0.00016712,2]
[330308990,1719249048077,-23.77672904,0.00016712,2]
[330308992,1719249048087,-527.19,0.00016712,2]
[330308993,1719249048097,-60.30327096,0.00016712,2]
[330309023,1719249048517,-3028.74672904,0.00016712,2]
[330309025,1719249048527,-500.0,0.00016712,2]
[330309027,1719249048537,-500.0,0.00016712,2]
[330309028,1719249048547,-500.0,0.00016712,2]
[330309030,1719249048557,-746.542983,0.00016712,2]
[330309032,1719249048566,-508.0195283,0.00016712,2]
[330309033,1719249048575,-746.542983,0.00016712,2]
[330309034,1719249048584,-500.0,0.00016712,2]
[330309035,1719249048594,-500.0,0.00016712,2]
[330309036,1719249048605,-2103.7,0.00016712,2]
[330309037,1719249048614,-504.0408507,0.00016712,2]
[330309038,1719249048623,-746.542983,0.00016712,2]
[330309039,1719249048632,-500.0,0.00016712,2]
[330309040,1719249048642,-636.46394296,0.00016712,2]
[330309041,1719249049240,-2129.2320514,0.00016145,2]
[330309042,1719249049249,-154.99225039,0.00016145,2]
[330309043,1719249049258,-457.45943987,0.00016408,2]
[330309044,1719249049267,-609.95,0.00016438,2]
[330309045,1719249049277,-500.0,0.00016438,2]
[330309046,1719249049286,-500.0,0.00016438,2]
[330309047,1719249049295,-110.07904004,0.00016712,2]
[330309048,1719249049304,-500.0,0.00016712,2]
[330309049,1719249049313,-500.0,0.00016712,2]
[330309050,1719249049322,-500.0,0.00016712,2]
[330309051,1719249049331,-168.8172183,0.00016712,2]
[330309052,1719249049356,-392.0027817,0.00016712,2]
[330309053,1719249049366,-500.0,0.00016766,2]
[330309054,1719249049375,-155.0,0.0001689,2]
[330309055,1719249049385,-394.80475809,0.000169,2]
[330309056,1719249049394,-92.27019686,0.00016955,2]
[330309057,1719249049407,-60.72980314,0.00016955,2]
[330309058,1719249049417,-151.0,0.00016956,2]
[330309059,1719249049426,-697.93,0.00016985,2]
[330309060,1719249049435,-697.93,0.00016985,2]
[330309061,1719249049444,-697.93,0.00016985,2]
[330309062,1719249049453,-697.93,0.00016985,2]
[330309063,1719249049463,-151.0,0.00016985,2]
[330309064,1719249049478,-151.0,0.00016985,2]
[330309065,1719249049487,-197.75610498,0.00016985,2]
[330309066,1719249049500,-131.10127202,0.00016985,2]